[Event "*** Titled Tuesday Blitz"]
[Site "Chess.com"]
[Date "2021.04.27"]
[Round "5"]
[White "MFBerna"]
[Black "barbara25"]
[Result "1-0"]
[WhiteElo "2459"]
[BlackElo "2289"]
[TimeControl "180+1"]
[EndTime "10:55:08 PDT"]
[Termination "MFBerna won by resignation"]

1. e4 {[%clk 0:03:00.9]} 1... c5 {[%clk 0:02:38.1]} 2. Nf3 {[%clk 0:03:00.6]}
2... d6 {[%clk 0:02:34.9]} 3. d4 {[%clk 0:03:00.9]} 3... cxd4 {[%clk 0:02:35.8]}
4. Nxd4 {[%clk 0:03:00.6]} 4... Nf6 {[%clk 0:02:33.4]} 5. Nc3 {[%clk 0:03:00.7]}
5... a6 {[%clk 0:02:34]} 6. Be2 {[%clk 0:03:00]} 6... e5 {[%clk 0:02:34.5]} 7.
Nb3 {[%clk 0:02:59.7]} 7... Be7 {[%clk 0:02:35.1]} 8. O-O {[%clk 0:02:59.5]}
8... Be6 {[%clk 0:02:35.7]} 9. f4 {[%clk 0:02:59.1]} 9... O-O {[%clk 0:02:35.1]}
10. f5 {[%clk 0:02:57]} 10... Bxb3 {[%clk 0:02:34.6]} 11. axb3 {[%clk
0:02:51.3]} 11... Nbd7 {[%clk 0:02:34.6]} 12. Be3 {[%clk 0:02:43.9]} 12... Rc8
{[%clk 0:02:34.5]} 13. Kh1 {[%clk 0:02:39.8]} 13... Qc7 {[%clk 0:02:34.6]} 14.
b4 {[%clk 0:02:26.5]} 14... Rfd8 {[%clk 0:02:33.7]} 15. Qe1 {[%clk 0:02:18.9]}
15... Nb6 {[%clk 0:02:32.5]} 16. Bg5 {[%clk 0:02:11.3]} 16... d5 {[%clk
0:02:30.7]} 17. Bxf6 {[%clk 0:02:06.3]} 17... Bxf6 {[%clk 0:02:30.3]} 18. exd5
{[%clk 0:02:06.2]} 18... Nxd5 {[%clk 0:02:30.5]} 19. Nxd5 {[%clk 0:02:03.1]}
19... Rxd5 {[%clk 0:02:29.1]} 20. Bf3 {[%clk 0:01:59.7]} 20... Rd4 {[%clk
0:02:27.6]} 21. c3 {[%clk 0:01:58.9]} 21... Rf4 {[%clk 0:02:27.5]} 22. Qe2
{[%clk 0:01:49.4]} 22... Rd8 {[%clk 0:02:26]} 23. Rad1 {[%clk 0:01:47.6]} 23...
Rxd1 {[%clk 0:02:20.7]} 24. Rxd1 {[%clk 0:01:48.5]} 24... Rxf5 {[%clk
0:02:17.8]} 25. Qe4 {[%clk 0:01:39.8]} 25... Rf4 {[%clk 0:02:09.5]} 26. Qxb7
{[%clk 0:01:39.5]} 26... Qxb7 {[%clk 0:02:07.9]} 27. Bxb7 {[%clk 0:01:40.4]}
27... Rf2 {[%clk 0:02:07.7]} 28. Bxa6 {[%clk 0:01:30.7]} 28... Rxb2 {[%clk
0:02:05]} 29. b5 {[%clk 0:00:56.8]} 29... g5 {[%clk 0:02:00.5]} 30. c4 {[%clk
0:00:53.3]} 30... e4 {[%clk 0:01:59.9]} 31. c5 {[%clk 0:00:51.9]} 31... Be5
{[%clk 0:01:54.9]} 32. b6 {[%clk 0:00:42.3]} 32... e3 {[%clk 0:01:54.2]} 33. g3
{[%clk 0:00:37]} 33... Rc2 {[%clk 0:01:46.7]} 34. Rd5 {[%clk 0:00:35]} 34... f6
{[%clk 0:01:43]} 35. Rxe5 {[%clk 0:00:34.9]} 35... fxe5 {[%clk 0:01:40.7]} 36.
b7 {[%clk 0:00:34.9]} 36... Rb2 {[%clk 0:01:24.7]} 37. c6 {[%clk 0:00:35]} 37...
Rb1+ {[%clk 0:01:16]} 38. Kg2 {[%clk 0:00:34.4]} 38... Rb2+ {[%clk 0:01:15.9]}
39. Kf3 {[%clk 0:00:34.2]} 39... e2 {[%clk 0:01:06.7]} 40. Bxe2 {[%clk
0:00:33.1]} 40... Rb3+ {[%clk 0:01:06.7]} 41. Ke4 {[%clk 0:00:32.7]} 1-0

[Event "*** Titled Tuesday Blitz"]
[Site "Chess.com"]
[Date "2021.04.27"]
[Round "5"]
[White "amintabatabaei"]
[Black "olksuna"]
[Result "1-0"]
[WhiteElo "2982"]
[BlackElo "2651"]
[TimeControl "180+1"]
[EndTime "10:55:11 PDT"]
[Termination "amintabatabaei won by resignation"]

1. e4 {[%clk 0:03:00.9]} 1... e6 {[%clk 0:02:59.9]} 2. Qe2 {[%clk 0:02:58.5]}
2... e5 {[%clk 0:02:56.6]} 3. f4 {[%clk 0:02:56.5]} 3... exf4 {[%clk 0:02:55.8]}
4. Nf3 {[%clk 0:02:56]} 4... Ne7 {[%clk 0:02:51.9]} 5. d4 {[%clk 0:02:55.6]}
5... Ng6 {[%clk 0:02:51.3]} 6. Nc3 {[%clk 0:02:56.1]} 6... Bb4 {[%clk
0:02:49.3]} 7. Bd2 {[%clk 0:02:55.8]} 7... O-O {[%clk 0:02:48.5]} 8. O-O-O
{[%clk 0:02:56.1]} 8... Re8 {[%clk 0:02:47.3]} 9. h4 {[%clk 0:02:53.3]} 9... d5
{[%clk 0:02:34.4]} 10. e5 {[%clk 0:02:53.3]} 10... c5 {[%clk 0:02:30.2]} 11. h5
{[%clk 0:02:52.8]} 11... Nf8 {[%clk 0:02:30.2]} 12. a3 {[%clk 0:02:41.7]} 12...
Nc6 {[%clk 0:01:57.5]} 13. axb4 {[%clk 0:02:39.9]} 13... cxb4 {[%clk 0:01:57.7]}
14. Nb1 {[%clk 0:02:36.7]} 14... Qa5 {[%clk 0:01:56.8]} 15. h6 {[%clk 0:02:36]}
15... g6 {[%clk 0:01:54.9]} 16. Qb5 {[%clk 0:02:16.8]} 16... Qa1 {[%clk
0:01:40.9]} 17. b3 {[%clk 0:02:14.3]} 17... Bf5 {[%clk 0:01:25.3]} 18. Qa4
{[%clk 0:02:06.1]} 18... Qxa4 {[%clk 0:01:14.4]} 19. bxa4 {[%clk 0:02:07]} 19...
Ne6 {[%clk 0:01:12.5]} 20. Kb2 {[%clk 0:01:51.7]} 20... Ncxd4 {[%clk 0:00:50.5]}
21. Nxd4 {[%clk 0:01:52.6]} 21... Nxd4 {[%clk 0:00:50.7]} 22. Bxf4 {[%clk
0:01:48.6]} 22... Rac8 {[%clk 0:00:15.2]} 23. Rxd4 {[%clk 0:01:37.3]} 23...
Rxc2+ {[%clk 0:00:15.1]} 24. Kb3 {[%clk 0:01:37.9]} 24... Rec8 {[%clk
0:00:11.6]} 25. Bd3 {[%clk 0:01:32.2]} 25... Bxd3 {[%clk 0:00:02.7]} 26. Rxd3
{[%clk 0:01:33.1]} 26... a5 {[%clk 0:00:02.3]} 27. Rhd1 {[%clk 0:01:25.9]} 27...
Rxg2 {[%clk 0:00:01.9]} 28. Rxd5 {[%clk 0:01:25.5]} 28... Kf8 {[%clk 0:00:02.4]}
29. Rd8+ {[%clk 0:01:24.6]} 29... Rxd8 {[%clk 0:00:02.9]} 30. Rxd8+ {[%clk
0:01:25.5]} 30... Ke7 {[%clk 0:00:03.8]} 31. Rh8 {[%clk 0:01:26.4]} 31... Rf2
{[%clk 0:00:03.7]} 32. Bg5+ {[%clk 0:01:25.8]} 32... Ke6 {[%clk 0:00:04.2]} 33.
Bf6 {[%clk 0:01:26.7]} 33... Rf3+ {[%clk 0:00:03.1]} 34. Kc4 {[%clk 0:01:27.2]}
34... Rf1 {[%clk 0:00:01.8]} 35. Nd2 {[%clk 0:01:25.7]} 35... Rc1+ {[%clk
0:00:02.3]} 36. Kb3 {[%clk 0:01:24.3]} 36... Rc3+ {[%clk 0:00:02.5]} 37. Kb2
{[%clk 0:01:24.9]} 37... Rd3 {[%clk 0:00:03.4]} 38. Ne4 {[%clk 0:01:25.3]} 1-0

[Event "*** Titled Tuesday Blitz"]
[Site "Chess.com"]
[Date "2021.04.27"]
[Round "5"]
[White "rynos0411"]
[Black "campomania3"]
[Result "1-0"]
[WhiteElo "2493"]
[BlackElo "2238"]
[TimeControl "180+1"]
[EndTime "10:55:17 PDT"]
[Termination "rynos0411 won by resignation"]

1. d4 {[%clk 0:02:54.4]} 1... d5 {[%clk 0:02:59.8]} 2. c4 {[%clk 0:02:52.7]}
2... c6 {[%clk 0:02:59.5]} 3. Nf3 {[%clk 0:02:50.8]} 3... Nf6 {[%clk 0:02:58.5]}
4. Nc3 {[%clk 0:02:48.4]} 4... dxc4 {[%clk 0:02:58.4]} 5. a4 {[%clk 0:02:47.4]}
5... e6 {[%clk 0:02:58.9]} 6. e4 {[%clk 0:02:45.7]} 6... Bb4 {[%clk 0:02:55.4]}
7. Bd2 {[%clk 0:02:42.9]} 7... Bxc3 {[%clk 0:02:44]} 8. Bxc3 {[%clk 0:02:42]}
8... Nxe4 {[%clk 0:02:43]} 9. Bxc4 {[%clk 0:02:37.5]} 9... Nxc3 {[%clk
0:02:37.2]} 10. bxc3 {[%clk 0:02:38.4]} 10... O-O {[%clk 0:02:36.9]} 11. O-O
{[%clk 0:02:37.6]} 11... c5 {[%clk 0:02:32]} 12. Bd3 {[%clk 0:02:29.6]} 12...
cxd4 {[%clk 0:02:27.8]} 13. cxd4 {[%clk 0:02:29]} 13... Nc6 {[%clk 0:02:26.7]}
14. h4 {[%clk 0:02:29.5]} 14... h6 {[%clk 0:02:22.1]} 15. Rb1 {[%clk 0:02:24.4]}
15... b6 {[%clk 0:02:20.8]} 16. Be4 {[%clk 0:02:23.6]} 16... Bb7 {[%clk
0:02:19.1]} 17. Qd3 {[%clk 0:02:18.9]} 17... Na5 {[%clk 0:02:11.2]} 18. Bh7+
{[%clk 0:02:04.2]} 18... Kh8 {[%clk 0:02:10.2]} 19. Ne5 {[%clk 0:02:05.1]} 19...
Qd5 {[%clk 0:01:54.8]} 20. f3 {[%clk 0:02:01.6]} 20... Rad8 {[%clk 0:01:53.1]}
21. Rfd1 {[%clk 0:01:50.4]} 21... Qxe5 {[%clk 0:01:37.6]} 22. dxe5 {[%clk
0:01:49.8]} 22... Rxd3 {[%clk 0:01:29.4]} 23. Bxd3 {[%clk 0:01:50.7]} 23... Rc8
{[%clk 0:01:09]} 24. Rbc1 {[%clk 0:01:49.4]} 24... Rxc1 {[%clk 0:01:02.8]} 25.
Rxc1 {[%clk 0:01:50.3]} 25... Kg8 {[%clk 0:01:00.9]} 26. Rc7 {[%clk 0:01:49.1]}
26... Kf8 {[%clk 0:00:57]} 27. Bb5 {[%clk 0:01:44.4]} 27... a6 {[%clk
0:00:53.6]} 28. Bd7 {[%clk 0:01:43.6]} 28... Bd5 {[%clk 0:00:49.4]} 29. Bc8
{[%clk 0:01:38.3]} 29... Bb3 {[%clk 0:00:42.2]} 30. Bxa6 {[%clk 0:01:30.7]}
30... Bxa4 {[%clk 0:00:42]} 31. Kf2 {[%clk 0:01:29.5]} 31... Nb3 {[%clk
0:00:37.5]} 32. Rb7 {[%clk 0:01:25.5]} 32... Nc5 {[%clk 0:00:34]} 33. Rxb6
{[%clk 0:01:25.4]} 33... Nxa6 {[%clk 0:00:33.8]} 34. Rxa6 {[%clk 0:01:26.3]}
34... Bb3 {[%clk 0:00:32.1]} 35. Ra7 {[%clk 0:01:27.2]} 35... g6 {[%clk
0:00:31.5]} 36. Ke3 {[%clk 0:01:23.3]} 36... Bc4 {[%clk 0:00:26.1]} 37. g4
{[%clk 0:01:20.5]} 37... Bb3 {[%clk 0:00:25.3]} 38. h5 {[%clk 0:01:18.7]} 38...
g5 {[%clk 0:00:23.5]} 39. f4 {[%clk 0:01:18.4]} 39... gxf4+ {[%clk 0:00:22.4]}
40. Kxf4 {[%clk 0:01:19.3]} 40... Bd1 {[%clk 0:00:21.2]} 41. g5 {[%clk
0:01:16.8]} 41... Bxh5 {[%clk 0:00:17.3]} 42. gxh6 {[%clk 0:01:16.9]} 42... Bg6
{[%clk 0:00:17.4]} 43. Kg5 {[%clk 0:01:17.5]} 43... Kg8 {[%clk 0:00:15.9]} 44.
Kf6 {[%clk 0:01:16.2]} 44... Kh7 {[%clk 0:00:16.1]} 45. Rxf7+ {[%clk 0:01:16]}
45... Bxf7 {[%clk 0:00:15.3]} 46. Kxf7 {[%clk 0:01:16.3]} 46... Kxh6 {[%clk
0:00:16.2]} 47. Kxe6 {[%clk 0:01:16.8]} 1-0

[Event "*** Titled Tuesday Blitz"]
[Site "Chess.com"]
[Date "2021.04.27"]
[Round "5"]
[White "KuzubovYuriy"]
[Black "Legendinunknown"]
[Result "1-0"]
[WhiteElo "2863"]
[BlackElo "2603"]
[TimeControl "180+1"]
[EndTime "10:55:19 PDT"]
[Termination "KuzubovYuriy won by resignation"]

1. d4 {[%clk 0:03:00.9]} 1... Nf6 {[%clk 0:02:56.9]} 2. Nf3 {[%clk 0:03:00.9]}
2... g6 {[%clk 0:02:55.7]} 3. Nbd2 {[%clk 0:03:00.8]} 3... d5 {[%clk 0:02:55.3]}
4. e3 {[%clk 0:03:00.5]} 4... Bg7 {[%clk 0:02:53.8]} 5. b4 {[%clk 0:03:00.5]}
5... O-O {[%clk 0:02:53.3]} 6. c4 {[%clk 0:03:00.6]} 6... c6 {[%clk 0:02:52.7]}
7. Be2 {[%clk 0:02:56.8]} 7... e6 {[%clk 0:02:42.5]} 8. O-O {[%clk 0:02:55.3]}
8... Nbd7 {[%clk 0:02:42]} 9. a4 {[%clk 0:02:53.1]} 9... a6 {[%clk 0:02:40.4]}
10. Bb2 {[%clk 0:02:47.4]} 10... Rb8 {[%clk 0:02:29.4]} 11. a5 {[%clk
0:02:41.5]} 11... Ne8 {[%clk 0:02:23.8]} 12. Qc2 {[%clk 0:02:37.3]} 12... Nd6
{[%clk 0:02:16.6]} 13. Ne5 {[%clk 0:02:32.4]} 13... f6 {[%clk 0:02:09.6]} 14.
Nd3 {[%clk 0:02:29.8]} 14... Qe7 {[%clk 0:02:05.8]} 15. Nc5 {[%clk 0:02:20.2]}
15... f5 {[%clk 0:02:02.1]} 16. f4 {[%clk 0:02:17.6]} 16... Ne4 {[%clk
0:01:59.9]} 17. Nf3 {[%clk 0:02:12.6]} 17... h6 {[%clk 0:01:50.5]} 18. Ne5
{[%clk 0:01:55.9]} 18... Kh7 {[%clk 0:01:42.9]} 19. Nxe4 {[%clk 0:01:53.6]}
19... fxe4 {[%clk 0:01:39.6]} 20. b5 {[%clk 0:01:49.4]} 20... Nxe5 {[%clk
0:01:38.2]} 21. fxe5 {[%clk 0:01:46.3]} 21... Bd7 {[%clk 0:01:18.5]} 22. bxa6
{[%clk 0:01:39.7]} 22... bxa6 {[%clk 0:01:17.9]} 23. Ba3 {[%clk 0:01:35.2]}
23... Rxf1+ {[%clk 0:01:16.7]} 24. Bxf1 {[%clk 0:01:35.6]} 24... Qg5 {[%clk
0:01:17.3]} 25. Qc3 {[%clk 0:01:26.3]} 25... Bf8 {[%clk 0:01:12.7]} 26. Bd6
{[%clk 0:01:23.2]} 26... Bxd6 {[%clk 0:01:12]} 27. exd6 {[%clk 0:01:23.2]} 27...
Rf8 {[%clk 0:01:07.4]} 28. Be2 {[%clk 0:01:19.9]} 28... Bc8 {[%clk 0:00:54.5]}
29. Rf1 {[%clk 0:01:18.8]} 29... Rxf1+ {[%clk 0:00:50]} 30. Bxf1 {[%clk
0:01:19.7]} 30... dxc4 {[%clk 0:00:46.8]} 31. Bxc4 {[%clk 0:01:16.7]} 31... c5
{[%clk 0:00:46.7]} 32. Bf1 {[%clk 0:01:08.5]} 32... cxd4 {[%clk 0:00:34]} 33.
Qc7+ {[%clk 0:01:06.2]} 33... Kg8 {[%clk 0:00:29.1]} 34. Qxc8+ {[%clk
0:01:06.3]} 34... Kg7 {[%clk 0:00:29.7]} 35. Qc7+ {[%clk 0:01:05.3]} 35... Kg8
{[%clk 0:00:26.4]} 36. Qb8+ {[%clk 0:01:05.4]} 36... Kf7 {[%clk 0:00:25]} 37.
Qa7+ {[%clk 0:01:05.6]} 37... Ke8 {[%clk 0:00:24.1]} 38. Qxd4 {[%clk 0:01:04.4]}
38... Qxa5 {[%clk 0:00:23.4]} 39. Qg7 {[%clk 0:01:02.9]} 39... Kd8 {[%clk
0:00:20.5]} 40. Qe7+ {[%clk 0:01:02.5]} 1-0

[Event "*** Titled Tuesday Blitz"]
[Site "Chess.com"]
[Date "2021.04.27"]
[Round "5"]
[White "TimurGareyev"]
[Black "Vesper2018"]
[Result "0-1"]
[WhiteElo "2690"]
[BlackElo "2560"]
[TimeControl "180+1"]
[EndTime "10:55:19 PDT"]
[Termination "Vesper2018 won by resignation"]

1. d4 {[%clk 0:02:57.4]} 1... Nf6 {[%clk 0:02:58]} 2. c4 {[%clk 0:02:57.1]} 2...
g6 {[%clk 0:02:57.7]} 3. Nc3 {[%clk 0:02:57]} 3... Bg7 {[%clk 0:02:57.3]} 4. e4
{[%clk 0:02:56.1]} 4... d6 {[%clk 0:02:57.5]} 5. Be2 {[%clk 0:02:52.8]} 5... O-O
{[%clk 0:02:57.3]} 6. Bg5 {[%clk 0:02:52.8]} 6... Na6 {[%clk 0:02:53.8]} 7. Nf3
{[%clk 0:02:50]} 7... h6 {[%clk 0:02:48.7]} 8. Bf4 {[%clk 0:02:49.3]} 8... c5
{[%clk 0:02:39.7]} 9. d5 {[%clk 0:02:45.8]} 9... Nc7 {[%clk 0:02:39.4]} 10. Nd2
{[%clk 0:02:38.3]} 10... e5 {[%clk 0:02:35]} 11. Be3 {[%clk 0:02:37.1]} 11...
Nh7 {[%clk 0:02:24.3]} 12. g4 {[%clk 0:02:34]} 12... f5 {[%clk 0:02:08.9]} 13.
gxf5 {[%clk 0:02:31.6]} 13... gxf5 {[%clk 0:02:09.4]} 14. exf5 {[%clk
0:02:30.1]} 14... Bxf5 {[%clk 0:02:04.7]} 15. Bg4 {[%clk 0:02:14.2]} 15... Qh4
{[%clk 0:01:52.8]} 16. Rg1 {[%clk 0:02:14.1]} 16... Ng5 {[%clk 0:01:45.1]} 17.
Bxg5 {[%clk 0:02:05.5]} 17... Qxg5 {[%clk 0:01:39.5]} 18. Nde4 {[%clk
0:02:04.2]} 18... Bxe4 {[%clk 0:01:17.2]} 19. Nxe4 {[%clk 0:02:00]} 19... Qf4
{[%clk 0:01:17]} 20. Qe2 {[%clk 0:01:54.7]} 20... Rad8 {[%clk 0:01:10.2]} 21.
Rg3 {[%clk 0:01:39.4]} 21... Kh8 {[%clk 0:01:01.2]} 22. Rf3 {[%clk 0:01:35]}
22... Qxh2 {[%clk 0:01:00.1]} 23. Rh3 {[%clk 0:01:17.8]} 23... Qg1+ {[%clk
0:00:55.9]} 24. Kd2 {[%clk 0:01:00.1]} 24... Qxa1 {[%clk 0:00:55.6]} 25. Kc2
{[%clk 0:00:58.8]} 25... Rf4 {[%clk 0:00:50.9]} 26. f3 {[%clk 0:00:57.9]} 26...
Qxa2 {[%clk 0:00:45.8]} 27. Qh2 {[%clk 0:00:55.9]} 27... Qxc4+ {[%clk
0:00:44.9]} 28. Nc3 {[%clk 0:00:54.9]} 28... Kh7 {[%clk 0:00:36.9]} 29. Rh5
{[%clk 0:00:49.3]} 29... Rdf8 {[%clk 0:00:35.9]} 30. Kb1 {[%clk 0:00:48.1]}
30... Rxg4 {[%clk 0:00:31.2]} 31. fxg4 {[%clk 0:00:46.5]} 31... Rf1+ {[%clk
0:00:31.9]} 32. Kc2 {[%clk 0:00:44.7]} 32... Qd4 {[%clk 0:00:31.7]} 33. g5
{[%clk 0:00:41.2]} 33... Rf2+ {[%clk 0:00:31.3]} 0-1

[Event "*** Titled Tuesday Blitz"]
[Site "Chess.com"]
[Date "2021.04.27"]
[Round "5"]
[White "Abdimalik_Abdisalimov"]
[Black "Ze-Pequeno"]
[Result "0-1"]
[WhiteElo "2324"]
[BlackElo "2225"]
[TimeControl "180+1"]
[EndTime "10:55:27 PDT"]
[Termination "Ze-Pequeno won by checkmate"]

1. d4 {[%clk 0:02:50]} 1... Nf6 {[%clk 0:02:59.4]} 2. c4 {[%clk 0:02:49.4]} 2...
g6 {[%clk 0:02:59.4]} 3. f3 {[%clk 0:02:48.7]} 3... Bg7 {[%clk 0:02:59.1]} 4. e4
{[%clk 0:02:49]} 4... O-O {[%clk 0:02:58.3]} 5. Nc3 {[%clk 0:02:49.4]} 5... d6
{[%clk 0:02:58.3]} 6. Nge2 {[%clk 0:02:49.7]} 6... c5 {[%clk 0:02:58.2]} 7. d5
{[%clk 0:02:49]} 7... e6 {[%clk 0:02:57.5]} 8. Be3 {[%clk 0:02:49.2]} 8... exd5
{[%clk 0:02:57.4]} 9. cxd5 {[%clk 0:02:49.5]} 9... a6 {[%clk 0:02:53.6]} 10. a4
{[%clk 0:02:49.1]} 10... Nbd7 {[%clk 0:02:52.2]} 11. Qd2 {[%clk 0:02:48.5]}
11... Rb8 {[%clk 0:02:39.6]} 12. Ng3 {[%clk 0:02:42.1]} 12... h5 {[%clk
0:02:36.2]} 13. h4 {[%clk 0:02:41.5]} 13... Re8 {[%clk 0:02:27.1]} 14. Bg5
{[%clk 0:02:37.5]} 14... Qc7 {[%clk 0:02:25.4]} 15. Be2 {[%clk 0:02:33.5]} 15...
Nh7 {[%clk 0:02:22.1]} 16. Bf4 {[%clk 0:02:32.8]} 16... Ne5 {[%clk 0:02:19.5]}
17. O-O {[%clk 0:02:24.6]} 17... Qe7 {[%clk 0:02:14.6]} 18. Bg5 {[%clk
0:02:20.3]} 18... Nxg5 {[%clk 0:02:09.8]} 19. hxg5 {[%clk 0:02:18.2]} 19... Bd7
{[%clk 0:02:04.1]} 20. a5 {[%clk 0:02:10.9]} 20... Bc8 {[%clk 0:01:42]} 21. f4
{[%clk 0:01:39.8]} 21... Ng4 {[%clk 0:01:39.1]} 22. Bxg4 {[%clk 0:01:38.1]}
22... Bxg4 {[%clk 0:01:33.3]} 23. Rae1 {[%clk 0:01:33.8]} 23... b5 {[%clk
0:01:31.2]} 24. f5 {[%clk 0:01:23.8]} 24... Be5 {[%clk 0:01:27.2]} 25. Nh1
{[%clk 0:01:16.9]} 25... Qd8 {[%clk 0:01:14.4]} 26. Ra1 {[%clk 0:01:00.6]} 26...
b4 {[%clk 0:01:03]} 27. Nd1 {[%clk 0:00:54.8]} 27... Bd4+ {[%clk 0:01:01.1]} 28.
Kh2 {[%clk 0:00:48.7]} 28... Rxe4 {[%clk 0:01:01.7]} 29. Nhf2 {[%clk 0:00:45.5]}
29... Be5+ {[%clk 0:01:01]} 30. Kg1 {[%clk 0:00:45.3]} 30... Re2 {[%clk
0:00:59.1]} 31. Qd3 {[%clk 0:00:39.1]} 31... Qxg5 {[%clk 0:00:51.1]} 32. Nxg4
{[%clk 0:00:37.4]} 32... Qxg4 {[%clk 0:00:52]} 33. Nf2 {[%clk 0:00:26]} 33...
Qg3 {[%clk 0:00:44.2]} 34. fxg6 {[%clk 0:00:21.4]} 34... Qh2# {[%clk 0:00:43.4]}
0-1

[Event "*** Titled Tuesday Blitz"]
[Site "Chess.com"]
[Date "2021.04.27"]
[Round "5"]
[White "Zipa5"]
[Black "RamyresCoelho"]
[Result "1-0"]
[WhiteElo "1866"]
[BlackElo "2184"]
[TimeControl "180+1"]
[EndTime "10:55:29 PDT"]
[Termination "Zipa5 won by resignation"]

1. Nf3 {[%clk 0:03:00.9]} 1... Nf6 {[%clk 0:02:59.5]} 2. c4 {[%clk 0:02:58]}
2... g6 {[%clk 0:02:59.4]} 3. Nc3 {[%clk 0:02:56.7]} 3... Bg7 {[%clk 0:02:59.8]}
4. e4 {[%clk 0:02:56.1]} 4... d6 {[%clk 0:02:59.6]} 5. d4 {[%clk 0:02:55.1]}
5... O-O {[%clk 0:02:56.4]} 6. Be2 {[%clk 0:02:53.6]} 6... Nc6 {[%clk
0:02:55.8]} 7. d5 {[%clk 0:02:50.5]} 7... Ne5 {[%clk 0:02:55.4]} 8. Nxe5 {[%clk
0:02:48.4]} 8... dxe5 {[%clk 0:02:56.1]} 9. O-O {[%clk 0:02:43.5]} 9... b6
{[%clk 0:02:54]} 10. f4 {[%clk 0:02:41]} 10... exf4 {[%clk 0:02:50.1]} 11. Bxf4
{[%clk 0:02:38.4]} 11... Nd7 {[%clk 0:02:45.4]} 12. Qd2 {[%clk 0:02:27.2]} 12...
Bb7 {[%clk 0:02:42.2]} 13. Rae1 {[%clk 0:02:17.8]} 13... Ne5 {[%clk 0:02:42.2]}
14. Nb5 {[%clk 0:02:10.2]} 14... a6 {[%clk 0:02:38.4]} 15. Nd4 {[%clk
0:02:08.9]} 15... Qd7 {[%clk 0:02:33.7]} 16. Nf3 {[%clk 0:02:05.7]} 16... Nxf3+
{[%clk 0:02:31]} 17. Bxf3 {[%clk 0:02:04.5]} 17... c6 {[%clk 0:02:23.8]} 18. e5
{[%clk 0:01:57.6]} 18... cxd5 {[%clk 0:02:23.3]} 19. cxd5 {[%clk 0:01:55.7]}
19... Rfd8 {[%clk 0:02:14.3]} 20. d6 {[%clk 0:01:41.7]} 20... Bxf3 {[%clk
0:02:09.3]} 21. Rxf3 {[%clk 0:01:40.5]} 21... exd6 {[%clk 0:02:04.6]} 22. exd6
{[%clk 0:01:38.3]} 22... Re8 {[%clk 0:02:00.2]} 23. Rfe3 {[%clk 0:01:36.8]}
23... Rxe3 {[%clk 0:01:53.7]} 24. Rxe3 {[%clk 0:01:36.1]} 24... Rc8 {[%clk
0:01:08.4]} 25. Re7 {[%clk 0:01:21.5]} 25... Qa4 {[%clk 0:01:01.6]} 26. d7
{[%clk 0:01:05.1]} 26... Qd4+ {[%clk 0:00:27.8]} 27. Qxd4 {[%clk 0:00:52.6]}
27... Bxd4+ {[%clk 0:00:28.7]} 28. Kf1 {[%clk 0:00:52]} 28... Rf8 {[%clk
0:00:21.6]} 29. Re8 {[%clk 0:00:48.3]} 29... Bf6 {[%clk 0:00:16.8]} 30. Bd6
{[%clk 0:00:46.4]} 1-0

[Event "*** Titled Tuesday Blitz"]
[Site "Chess.com"]
[Date "2021.04.27"]
[Round "5"]
[White "SanchezKelvin"]
[Black "Romadk"]
[Result "0-1"]
[WhiteElo "196"]
[BlackElo "2325"]
[TimeControl "180+1"]
[EndTime "10:55:32 PDT"]
[Termination "Romadk won by checkmate"]

1. e4 {[%clk 0:02:44.6]} 1... Nf6 {[%clk 0:02:59.8]} 2. e5 {[%clk 0:02:43.8]}
2... Nd5 {[%clk 0:03:00]} 3. d4 {[%clk 0:02:43.7]} 3... d6 {[%clk 0:02:59.5]} 4.
c4 {[%clk 0:02:34.6]} 4... Nb6 {[%clk 0:02:59.6]} 5. f4 {[%clk 0:02:34.5]} 5...
dxe5 {[%clk 0:02:59.6]} 6. fxe5 {[%clk 0:02:35.4]} 6... Nc6 {[%clk 0:03:00.5]}
7. Be3 {[%clk 0:02:34.6]} 7... Bf5 {[%clk 0:03:01.1]} 8. Nc3 {[%clk 0:02:33.7]}
8... e6 {[%clk 0:03:00.5]} 9. Nf3 {[%clk 0:02:33.4]} 9... Qd7 {[%clk 0:03:01.4]}
10. Be2 {[%clk 0:02:32.6]} 10... O-O-O {[%clk 0:02:59.7]} 11. O-O {[%clk
0:02:32.1]} 11... Kb8 {[%clk 0:02:59.6]} 12. a4 {[%clk 0:02:30.7]} 12... a5
{[%clk 0:02:57.1]} 13. d5 {[%clk 0:02:22.5]} 13... exd5 {[%clk 0:02:58]} 14.
Bxb6 {[%clk 0:02:22.1]} 14... cxb6 {[%clk 0:02:57.1]} 15. cxd5 {[%clk
0:02:22.4]} 15... Bc5+ {[%clk 0:02:57.1]} 16. Kh1 {[%clk 0:02:22]} 16... Nb4
{[%clk 0:02:58]} 17. Bb5 {[%clk 0:02:13.5]} 17... Qc8 {[%clk 0:02:57.4]} 18. Ng5
{[%clk 0:02:10.4]} 18... Nxd5 {[%clk 0:02:50]} 19. Nxd5 {[%clk 0:01:59.5]} 19...
Be6 {[%clk 0:02:50]} 20. Nxf7 {[%clk 0:01:50.2]} 20... Rxd5 {[%clk 0:02:01.2]}
21. Qe2 {[%clk 0:01:34.4]} 21... Rf8 {[%clk 0:01:45.8]} 22. Ng5 {[%clk
0:01:25.2]} 22... Bf5 {[%clk 0:01:34.3]} 23. e6 {[%clk 0:01:13.3]} 23... Be7
{[%clk 0:01:18.4]} 24. Bd7 {[%clk 0:01:04.6]} 24... Qd8 {[%clk 0:01:18.2]} 25.
Nf3 {[%clk 0:00:58.2]} 25... Bc5 {[%clk 0:01:06.4]} 26. Rad1 {[%clk 0:00:51.5]}
26... Rxd1 {[%clk 0:01:05.1]} 27. Rxd1 {[%clk 0:00:52.4]} 27... Qe7 {[%clk
0:01:05.6]} 28. Qe5+ {[%clk 0:00:48.4]} 28... Ka7 {[%clk 0:01:04.6]} 29. Re1
{[%clk 0:00:31.3]} 29... Bg4 {[%clk 0:00:47.2]} 30. Nd2 {[%clk 0:00:23.9]} 30...
Qh4 {[%clk 0:00:42.8]} 31. Qg3 {[%clk 0:00:20.5]} 31... Qxg3 {[%clk 0:00:38.5]}
32. hxg3 {[%clk 0:00:20.5]} 32... Rf6 {[%clk 0:00:36.5]} 33. Ne4 {[%clk
0:00:19.8]} 33... Rh6# {[%clk 0:00:35.9]} 0-1